bitfinex/quotes_SOLUSD_20250704
["timestamp","ask_amount","ask_price","bid_price","bid_amount"]
[1751636971872,6.15057045,149.28,149.09,6.70735797]
[1751636971873,43.21057045,149.27,149.15,11.34660818]
[1751636972087,4.84032555,149.26,149.09,6.70735797]
[1751636972298,11.34660818,149.22,149.16,11.34660818]
[1751636972604,6.70159183,149.22,149.17,11.34660818]
[1751636972903,18.04820001,149.22,149.16,11.34660818]
[1751636973396,37.08,149.27,149.19,11.34660818]
[1751636973615,11.34660818,149.27,149.22,11.34660818]
[1751636973815,18.0457578,149.28,149.23,11.34660818]
[1751636974105,6.69844126,149.29,149.23,11.34660818]
[1751636974279,18.04504944,149.29,149.16,8.28]
[1751636974479,11.34660818,149.28,149.23,11.34660818]
[1751636974676,6.69892758,149.28,149.23,11.34660818]
[1751636974898,6.69657804,149.33,149.26,11.34660818]
[1751636975104,6.69657804,149.33,149.29,11.34660818]
[1751636975406,4.82951029,149.33,149.24,8.28]
[1751636975612,11.34660818,149.33,149.24,8.28]
[1751636975811,11.34660818,149.33,149.28,11.34660818]
[1751636976013,4.82951029,149.36,149.28,11.34660818]
[1751636976177,11.34660818,149.32,149.24,8.28]
[1751636976507,11.54660818,149.32,149.24,8.28]
[1751636976817,18.24392878,149.32,149.27,11.34660818]
[1751636977603,11.34660818,149.28,149.21,1.5855]
[1751636977807,11.34660818,149.28,149.23,11.34660818]
[1751636978002,11.34660818,149.27,149.19,23.46001742]
[1751636978310,11.34660818,149.27,149.19,6.70286212]
[1751636978501,11.34660818,149.27,149.22,11.34660818]
[1751636978884,11.34660818,149.28,149.22,6.70119515]
[1751636979082,11.34660818,149.3,149.25,11.34660818]
[1751636980190,18.04456952,149.3,149.25,11.34660818]
[1751636980787,11.34660818,149.3,149.26,11.34660818]
[1751636980996,18.04468573,149.3,149.26,11.34660818]
[1751636981193,11.34660818,149.3,149.26,11.34660818]
[1751636981717,18.04466846,149.3,149.26,11.34660818]
[1751636982513,18.04466846,149.3,149.2,16.75532837]
[1751636982715,18.04466846,149.3,149.26,11.34660818]
[1751636982919,11.34660818,149.3,149.26,11.34660818]
[1751636983112,18.04419566,149.31,149.26,11.34660818]
[1751636983318,18.04419566,149.31,149.22,11.34660818]
[1751636983319,11.34660818,149.3,149.25,11.34660818]
[1751636983524,11.34660818,149.3,149.18,40.2198686]
[1751636983525,11.34660818,149.27,149.18,6.70331143]
[1751636983708,11.34660818,149.25,149.21,11.34660818]
[1751636984415,11.34660818,149.26,149.21,11.34660818]
[1751636984929,11.34660818,149.24,149.19,6.70273116]
[1751636985133,11.34660818,149.24,149.2,11.34660818]
[1751636985333,11.34660818,149.24,149.19,6.70273116]
[1751636985512,16.74618081,149.29,149.17,14.98360355]
[1751636985829,11.34660818,149.22,149.18,11.34660818]
[1751636986136,16.74618081,149.29,149.17,14.98360355]
[1751636986318,11.34660818,149.23,149.19,11.34660818]
[1751636986501,11.34660818,149.23,149.18,11.34660818]
[1751636986702,11.34660818,149.22,149.18,11.34660818]
[1751636987725,23.44901513,149.26,149.18,11.34660818]
[1751636987913,11.34660818,149.23,149.18,11.34660818]
[1751636988532,18.04775931,149.23,149.18,11.34660818]
[1751636988912,11.34660818,149.21,149.17,8.28]
[1751636989100,11.34660818,149.2,149.15,6.70428198]
[1751636989503,11.34660818,149.2,149.15,18.05089016]
[1751636989937,11.34660818,149.19,149.14,11.34660818]
[1751636990102,11.34660818,149.19,149.15,11.34660818]
[1751636990738,18.04950355,149.19,149.14,18.05140732]
[1751636990940,18.04950355,149.19,149.14,6.70479914]
[1751636991116,18.04950355,149.19,149.14,18.05140732]
[1751636991315,18.04950355,149.19,149.14,6.70479914]
[1751636991548,18.04950355,149.19,149.08,5.0]
[1751636991549,6.0771,149.18,149.08,5.0]
[1751636991716,39.29374331,149.17,149.08,5.0]
[1751636991913,11.34660818,149.12,149.08,5.0]
[1751636992114,11.34660818,149.12,149.04,6.70960815]
[1751636992317,11.34660818,149.13,149.08,11.34660818]
[1751636992542,23.46473585,149.16,149.09,11.34660818]
[1751636992543,11.34660818,149.14,149.09,11.34660818]
[1751636992948,6.70421024,149.16,149.1,11.34660818]
[1751636993128,6.70421024,149.16,149.04,34.83023672]
[1751636993129,11.34660818,149.14,149.04,6.70960815]
[1751636993322,6.70421024,149.16,149.07,11.34660818]
[1751636993323,11.34660818,149.11,149.07,11.34660818]
[1751636993729,11.34660818,149.12,149.08,11.34660818]
[1751636993912,11.34660818,149.13,149.08,11.34660818]
[1751636994116,18.05255984,149.13,149.08,11.34660818]
[1751636994317,11.34660818,149.12,149.05,0.1]
[1751636994656,11.34660818,149.11,149.05,6.80911584]
[1751636994952,11.34660818,149.1,149.05,11.44660818]
[1751636995148,11.34660818,149.12,149.08,11.34660818]
[1751636995350,11.34660818,149.13,149.08,11.34660818]
[1751636995648,11.34660818,149.15,149.1,11.34660818]
[1751636995946,11.34660818,149.14,149.09,11.34660818]
[1751636996145,11.34660818,149.16,149.11,18.05306649]
[1751636997432,11.34660818,149.16,149.12,11.34660818]
[1751636997941,11.34660818,149.16,149.11,11.34660818]
[1751636998143,11.34660818,149.16,149.12,11.34660818]
[1751636998315,6.70389115,149.17,149.07,6.70825786]
[1751636998516,11.34660818,149.13,149.09,11.34660818]
[1751636998720,11.34660818,149.14,149.09,11.34660818]
[1751637000137,11.34660818,149.14,149.07,6.70825786]
[1751637000337,6.70331143,149.18,149.11,11.34660818]
[1751637000551,11.34660818,149.19,149.07,44.37890252]
[1751637000846,6.15057045,149.25,149.18,11.34660818]
[1751637000847,6.7001675,149.25,149.18,11.34660818]
[1751637001023,11.34660818,149.19,149.11,8.28]
[1751637001344,11.34660818,149.16,149.12,11.34660818]
[1751637001550,11.34660818,149.22,149.11,8.28]
[1751637001727,11.34660818,149.18,149.14,11.34660818]
[1751637001932,11.34660818,149.17,149.13,11.34660818]
[1751637002149,4.83400719,149.21,149.13,11.34660818]
[1751637002346,11.34660818,149.18,149.14,18.05171747]
[1751637002561,11.34660818,149.2,149.15,11.34660818]
[1751637002765,28.29006331,149.24,149.15,11.34660818]
[1751637002922,11.34660818,149.21,149.16,11.34660818]
[1751637003130,11.34660818,149.21,149.17,11.34660818]
[1751637003357,11.34660818,149.22,149.18,11.34660818]
[1751637003551,11.34660818,149.22,149.14,23.46788252]
[1751637003847,11.34660818,149.22,149.18,11.34660818]
[1751637004055,11.34660818,149.23,149.19,11.34660818]
[1751637004255,6.70092553,149.24,149.18,6.70331143]
[1751637004622,11.34660818,149.22,149.18,6.70331143]
[1751637004848,6.70092553,149.24,149.18,6.70331143]
[1751637005145,11.34660818,149.22,149.18,6.70331143]
[1751637005554,6.70092553,149.24,149.18,6.70331143]
[1751637005756,11.34660818,149.22,149.18,6.70331143]
[1751637006342,11.34660818,149.24,149.19,11.34660818]
[1751637006855,11.34660818,149.25,149.2,11.34660818]
[1751637007749,11.34660818,149.24,149.2,11.34660818]
[1751637008057,11.34660818,149.24,149.2,6.70232536]
[1751637008360,11.34660818,149.21,149.17,18.05036898]
[1751637008948,11.34660818,149.2,149.15,12.85170818]
[1751637009146,11.34660818,149.2,149.16,11.34660818]
[1751637009365,11.34660818,149.2,149.15,1.5051]
[1751637009544,11.34660818,149.2,149.16,11.34660818]
[1751637009860,11.34660818,149.21,149.16,18.05043677]
[1751637010764,18.04862938,149.21,149.16,11.34660818]
[1751637011069,11.34660818,149.19,149.15,19.55622203]
[1751637011365,11.34660818,149.19,149.14,18.05159288]
[1751637011567,4.86663729,149.2,149.13,38.95206205]
[1751637011737,11.34660818,149.18,149.14,11.34660818]
[1751637011935,11.34660818,149.18,149.13,6.70545387]
[1751637012136,11.34660818,149.18,149.14,11.34660818]
[1751637012766,11.34660818,149.18,149.14,18.05130034]
[1751637013348,6.70247145,149.2,149.14,18.05130034]
[1751637013555,11.34660818,149.18,149.14,18.05130034]
[1751637014070,11.34660818,149.16,149.12,6.70586144]
[1751637014238,11.34660818,149.15,149.11,20.9]
[1751637015059,11.34660818,149.14,149.11,27.60642152]
[1751637015271,11.34660818,149.12,149.07,20.9]
[1751637015437,11.34660818,149.1,149.06,6.7087079]
[1751637015641,11.34660818,149.1,149.06,18.05531608]
[1751637016347,11.34660818,149.1,149.05,16.6192]
[1751637016545,4.86769694,149.15,149.05,8.2716953]
[1751637016745,11.34660818,149.1,149.06,11.34660818]
[1751637016962,11.34660818,149.09,149.05,8.2716953]
[1751637017269,11.34660818,149.08,149.05,1.5626]
[1751637017477,11.34660818,149.09,149.05,1.5626]
[1751637017653,11.34660818,149.1,149.05,12.90920818]
[1751637018052,11.34660818,149.1,149.05,8.27172614]
[1751637018251,6.70600858,149.12,149.05,8.27172614]
[1751637018455,11.34660818,149.09,149.05,19.61833432]
[1751637018850,16.7629773,149.14,149.05,19.61833432]
[1751637019049,11.34660818,149.09,149.05,19.61833432]
[1751637019246,11.34660818,149.1,149.06,11.34660818]
[1751637019450,11.34660818,149.09,149.05,1.5626]
[1751637019664,11.34660818,149.07,149.02,11.34660818]
[1751637019862,11.34660818,149.05,149.0,2.579]
[1751637020163,11.34660818,149.04,149.0,13.92560818]
[1751637020373,11.34660818,149.04,149.0,2.579]
[1751637020556,11.34660818,149.04,149.0,9.29025279]
[1751637020756,11.34660818,149.04,149.0,20.63686097]
[1751637020963,6.1835,149.1,149.03,11.34660818]
[1751637021157,6.1835,149.1,149.0,26.06877627]
[1751637021360,11.34660818,149.07,149.03,11.34660818]
[1751637021569,11.34660818,149.07,149.0,26.06877627]
[1751637021773,11.34660818,149.07,149.03,11.34660818]
[1751637022578,12.89051889,149.1,149.03,11.34660818]
[1751637022761,11.34660818,149.08,149.04,18.05621633]
[1751637022965,6.2313,149.14,149.07,11.34660818]
[1751637023164,11.34660818,149.12,149.08,11.34660818]
[1751637023369,11.34660818,149.12,149.04,18.05621633]
[1751637023370,11.34660818,149.13,149.04,6.70960815]
[1751637023565,11.34660818,149.11,149.07,11.34660818]
[1751637023966,11.34660818,149.13,149.09,11.34660818]
[1751637024282,11.34660818,149.13,149.08,11.34660818]
[1751637024470,13.2917397,149.18,149.09,11.34660818]
[1751637024670,11.34660818,149.15,149.11,6.70645831]
[1751637024986,6.70386097,149.17,149.11,6.70645831]
[1751637025179,11.34660818,149.15,149.11,6.70645831]
[1751637025381,11.34660818,149.14,149.1,6.70673938]
[1751637025688,6.70386097,149.17,149.07,16.76961876]
[1751637025890,6.70386097,149.17,149.02,6.2417]
[1751637025891,11.34660818,149.1,149.02,6.2417]
[1751637026181,23.46326299,149.17,149.05,11.34660818]
[1751637026381,11.34660818,149.1,149.06,11.34660818]
[1751637026580,11.34660818,149.08,149.04,11.34660818]
[1751637026785,37.1,149.13,149.0,2.579]
[1751637026967,11.34660818,149.05,149.0,2.579]
[1751637027158,11.34660818,149.05,149.01,6.71095899]
[1751637027493,11.34660818,149.04,149.0,20.636833]
[1751637027883,11.34660818,149.05,149.0,20.636833]
[1751637028386,23.47103003,149.12,149.0,1.0]
[1751637028387,11.34660818,149.03,149.0,1.0]
[1751637028997,11.34660818,149.03,149.0,7.71133298]
[1751637029174,11.34660818,149.03,149.0,1.0]
[1751637029505,11.34660818,149.02,149.0,1.0]
[1751637029858,11.34660818,149.01,149.0,1.0]
[1751637030062,6.709158,149.05,149.0,1.0]
[1751637030274,11.34660818,149.04,149.0,7.71134749]
[1751637030478,11.34660818,149.03,149.0,7.71134749]
[1751637030679,6.70780788,149.08,149.0,19.05795567]
[1751637030892,11.34660818,149.04,149.0,7.71134749]
[1751637031192,6.70856237,149.07,149.0,7.71134749]
[1751637031367,6.70856237,149.07,149.0,19.05795567]
[1751637031704,6.70856237,149.07,149.0,7.71134749]
[1751637031705,11.34660818,149.05,149.0,7.71134749]
[1751637031879,6.70856237,149.07,149.0,19.05795567]
[1751637032201,11.34660818,149.06,149.01,11.34660818]
[1751637032388,11.34660818,149.05,149.0,7.71134749]
[1751637032558,11.34660818,149.05,149.01,11.34660818]
[1751637032978,11.34660818,149.06,149.01,11.34660818]
[1751637033377,6.2303,149.09,149.02,18.05711683]
[1751637033576,11.34660818,149.06,149.02,18.05711683]
[1751637033790,11.34660818,149.08,149.02,23.48678029]
[1751637033997,11.34660818,149.08,149.03,11.34660818]
[1751637034376,11.34660818,149.05,149.02,6.71050865]
[1751637034795,11.34660818,149.06,149.02,6.71050865]
[1751637035015,11.34660818,149.05,149.01,6.71090654]
[1751637035508,11.34660818,149.05,149.01,18.05751472]
[1751637035690,6.70690811,149.1,149.0,7.71124974]
[1751637035895,11.34660818,149.03,149.0,7.71124974]
[1751637036101,11.34660818,149.05,149.0,19.05785792]
[1751637036282,11.34660818,149.05,149.01,11.34660818]
[1751637036474,11.34660818,149.05,149.0,7.71124974]
[1751637036678,11.34660818,149.04,149.0,7.71124974]
[1751637037593,18.05623017,149.04,149.0,1.0]
[1751637037899,11.34660818,149.04,149.0,7.71133027]
[1751637038397,11.34660818,149.04,149.0,19.05793845]
[1751637038582,6.70735797,149.09,149.02,11.34660818]
[1751637038770,11.34660818,149.05,149.01,11.34660818]
[1751637038974,11.34660818,149.03,149.0,1.0]
[1751637039174,11.34660818,149.02,149.0,1.0]
[1751637039577,23.48058583,149.06,149.0,1.0]
[1751637039993,11.34660818,149.01,149.0,1.0]
[1751637040310,6.70881608,149.06,149.0,1.0]
[1751637040495,6.70881608,149.06,149.0,7.71125996]
[1751637040698,6.70780788,149.08,149.01,11.34660818]
[1751637040886,6.70735797,149.09,149.02,6.71050865]
[1751637041086,11.34660818,149.05,149.02,6.71050865]
[1751637041591,11.34660818,149.06,149.02,18.05711683]
[1751637041993,11.34660818,149.06,149.02,6.71050865]
[1751637042180,6.70708247,149.1,149.02,6.71050865]
[1751637042384,11.34660818,149.06,149.02,6.71050865]
[1751637042699,11.34660818,149.06,149.02,18.05711683]
[1751637043208,11.34660818,149.06,149.02,6.71050865]
[1751637043703,16.76614579,149.11,149.02,6.71050865]
[1751637043913,23.4726041,149.11,149.0,1.0]
[1751637044081,23.4726041,149.11,149.0,7.71123132]
[1751637044082,2.41335559,149.1,149.0,7.71123132]
[1751637044279,11.34660818,149.05,149.0,7.71123132]
[1751637044485,11.34660818,149.04,149.0,7.71123132]
[1751637044687,11.34660818,149.05,149.01,11.34660818]
[1751637044902,11.34660818,149.05,149.0,24.4897548]
[1751637045096,11.34660818,149.04,149.0,19.0578395]
[1751637045287,6.70690811,149.1,149.0,19.0578395]
[1751637045496,6.70690811,149.1,149.01,11.34660818]
[1751637045497,11.34660818,149.05,149.01,11.34660818]
[1751637045886,11.34660818,149.06,149.0,24.4897548]
[1751637046404,11.34660818,149.05,149.0,24.4897548]
[1751637046714,17.86630818,149.13,149.04,11.34660818]
[1751637046928,11.34660818,149.09,149.05,11.34660818]
[1751637047203,11.34660818,149.09,149.0,24.4897548]
[1751637047204,11.34660818,149.07,149.02,11.34660818]
[1751637047408,41.33583701,149.13,149.0,24.4897548]
[1751637047409,11.34660818,149.06,149.0,24.4897548]
[1751637047583,41.33583701,149.13,149.01,11.34660818]
[1751637047778,41.33583701,149.13,149.0,7.71123132]
[1751637047779,11.34660818,149.04,149.0,7.71123132]
[1751637048494,11.34660818,149.04,149.0,19.0578395]
[1751637048686,11.34660818,149.06,149.02,11.34660818]
[1751637049193,43.44693659,149.13,149.03,11.34660818]
[1751637049389,80.38693659,149.13,149.03,11.34660818]
[1751637049588,11.34660818,149.08,149.03,11.34660818]
[1751637049914,11.34660818,149.09,149.04,11.34660818]
[1751637050085,6.70600858,149.12,149.05,11.34660818]
[1751637050286,11.34660818,149.09,149.05,11.34660818]
[1751637050502,11.34660818,149.09,149.06,6.7087079]
[1751637050701,11.34660818,149.11,149.06,18.05531608]
[1751637051083,13.22528424,149.13,149.06,6.7087079]
[1751637051282,11.34660818,149.11,149.06,6.7087079]
[1751637051499,13.22528424,149.13,149.06,18.05531608]
[1751637051694,11.34660818,149.1,149.06,18.05531608]
[1751637052317,11.34660818,149.08,149.04,1.6111]
[1751637052493,11.34660818,149.07,149.04,6.70951367]
[1751637052691,11.34660818,149.07,149.02,6.71050865]
[1751637052996,11.34660818,149.07,149.03,11.34660818]
[1751637054522,11.34660818,149.07,149.02,23.48678029]
[1751637054718,11.34660818,149.08,149.04,11.34660818]
[1751637054928,11.34660818,149.08,149.03,11.34660818]
[1751637055288,4.84565373,149.12,149.03,11.34660818]
[1751637055601,11.34660818,149.08,149.03,11.34660818]
[1751637055801,11.34660818,149.08,149.04,6.70960815]
[1751637057709,11.34660818,149.08,149.04,11.34660818]
[1751637058615,11.34660818,149.08,149.03,11.34660818]
[1751637059198,4.8601983,149.12,149.02,6.71050865]
[1751637059403,11.34660818,149.06,149.02,6.71050865]
[1751637059699,11.34660818,149.05,149.02,6.71050865]
[1751637060306,4.8601983,149.1,149.02,18.05711683]
[1751637060307,11.34660818,149.06,149.02,18.05711683]
[1751637060810,6.70752849,149.09,149.02,6.71050865]
[1751637061015,11.34660818,149.08,149.03,11.34660818]
[1751637061595,11.34660818,149.07,149.02,23.48678029]
[1751637061813,11.34660818,149.07,149.03,11.34660818]
[1751637062094,11.34660818,149.07,149.04,6.70960815]
[1751637062295,6.70690811,149.1,149.04,6.70960815]
[1751637062520,6.70690811,149.1,149.0,2.6111]
[1751637062738,11.34660818,149.07,149.02,11.34660818]
[1751637063091,4.8553692,149.09,149.03,11.34660818]
[1751637063294,4.8568668,149.11,149.07,11.34660818]
[1751637063634,14.59057045,149.15,149.01,57.04315146]
[1751637063635,16.40347498,149.14,149.05,6.2227]
[1751637063826,2.42602997,149.13,149.06,1.6655]
[1751637064007,2.42602997,149.13,149.12,11.34660818]
[1751637064195,2.42602997,149.13,149.11,6.7061615]
[1751637064196,0.2,149.14,149.09,6.70735797]
[1751637064394,13.77389446,149.13,149.08,20.9]
[1751637064598,6.90517818,149.14,149.06,1.6655]
[1751637064599,11.34660818,149.11,149.06,1.6655]
[1751637064824,11.34660818,149.08,149.04,18.05609574]
[1751637065130,6.5321,149.12,149.04,18.05609574]
[1751637065316,2.42713145,149.11,149.04,18.05609574]
[1751637065520,11.34660818,149.06,149.02,8.24]
[1751637065722,11.34660818,149.06,149.02,14.95046875]
[1751637066098,6.70690811,149.1,149.02,8.24]
[1751637066300,11.34660818,149.05,149.02,8.24]
[1751637066528,11.34660818,149.06,149.02,11.34660818]
[1751637066829,11.34660818,149.07,149.02,11.34660818]
[1751637067040,11.34660818,149.03,149.0,1.0]
[1751637067340,11.34660818,149.01,149.0,1.0]
[1751637067516,4.84854502,149.03,149.0,1.0]
[1751637067921,11.34660818,149.01,149.0,1.0]
[1751637068107,4.84854502,149.05,149.0,1.0]
[1751637068314,25.9088989,149.04,149.0,1.0]
[1751637068634,4.84854502,149.03,149.0,1.0]
[1751637068934,14.98195581,149.06,149.0,1.0]
[1751637068935,11.5538635,149.05,149.01,11.34660818]
[1751637069221,6.70930362,149.05,149.0,1.0]
[1751637069428,18.0559118,149.05,149.0,1.0]
[1751637069726,6.70930362,149.05,149.01,11.34660818]
[1751637070030,4.84580421,149.08,149.0,7.71140724]
[1751637070196,4.84580421,149.09,149.06,11.34660818]
[1751637070403,2.4284899,149.08,149.04,6.7092526]
[1751637070625,18.05365187,149.1,149.06,11.34660818]
[1751637070797,2.42861414,149.09,149.05,11.34660818]
[1751637071543,2.42861414,149.09,149.03,6.70997943]
[1751637071721,2.42861414,149.09,149.05,11.34660818]
[1751637072035,9.13616104,149.09,149.01,6.71095899]
[1751637072203,9.13616104,149.09,149.02,11.34660818]
[1751637072204,11.34660818,149.07,149.02,11.34660818]
[1751637072416,11.34660818,149.06,149.02,11.34660818]
[1751637072612,11.34660818,149.06,149.01,11.34660818]
[1751637073325,6.7075469,149.09,149.0,7.71128141]
[1751637073631,11.34660818,149.06,149.02,11.34660818]
[1751637074129,6.70825786,149.07,149.02,11.34660818]
[1751637074336,11.34660818,149.06,149.02,11.34660818]
[1751637074539,11.34660818,149.04,149.0,1.0]
[1751637074832,11.34660818,149.04,149.0,12.34660818]
[1751637075017,11.34660818,149.03,149.0,1.0]
[1751637075226,11.34660818,149.01,149.0,1.0]
[1751637075606,18.05756717,149.01,149.0,1.0]
[1751637076205,11.34660818,149.02,149.0,1.0]
[1751637077431,12.82123785,149.05,149.0,1.0]
[1751637077626,11.34660818,149.03,149.0,1.0]
[1751637077807,11.34660818,149.03,149.0,7.71137686]
[1751637078509,6.70865865,149.07,149.01,11.34660818]
[1751637078720,11.34660818,149.05,149.01,11.34660818]
[1751637078907,11.34660818,149.06,149.02,11.34660818]
[1751637079320,6.7079314,149.08,149.02,11.34660818]
[1751637079640,6.7079314,149.08,149.0,7.71137686]
[1751637079641,11.34660818,149.05,149.01,18.057353]
[1751637079938,11.34660818,149.04,149.0,1.0]
[1751637080426,11.34660818,149.05,149.01,11.34660818]
[1751637080837,11.34660818,149.04,149.0,19.05789756]
[1751637081047,11.34660818,149.03,149.0,7.71128938]
[1751637081221,11.34660818,149.04,149.0,7.71128938]
[1751637082530,6.70897879,149.06,149.0,19.05789756]
[1751637082920,11.34660818,149.04,149.0,19.05789756]
[1751637083830,11.34660818,149.04,149.0,7.71128938]
[1751637084507,6.70897879,149.06,149.0,7.71128938]
[1751637084709,11.34660818,149.04,149.0,19.05789756]
[1751637085144,6.70897879,149.06,149.0,1.0]
[1751637085341,11.34660818,149.03,149.0,7.71139717]
[1751637086152,11.34660818,149.05,149.0,19.05800535]
[1751637087239,6.70886208,149.06,149.0,19.05800535]
[1751637087440,11.34660818,149.04,149.0,19.05800535]
[1751637088419,11.34660818,149.02,149.0,1.0]
[1751637088624,23.47890252,149.07,149.0,1.0]
[1751637088841,11.34660818,149.02,149.0,1.0]
[1751637089042,23.47890252,149.07,149.0,7.71135588]
[1751637089340,11.34660818,149.04,149.0,7.71135588]
[1751637089528,6.70790903,149.08,149.02,11.34660818]
[1751637089733,11.54660818,149.13,149.0,7.71135588]
[1751637089734,2.42751718,149.07,149.05,11.34660818]
[1751637090040,11.34660818,149.1,149.05,11.34660818]
[1751637090227,13.77453555,149.09,149.05,18.05554504]
[1751637090543,13.77453555,149.08,149.02,6.71050865]
[1751637090713,11.34660818,149.06,149.02,18.05711683]
[1751637091120,11.34660818,149.06,149.02,6.71050865]
[1751637091943,11.34660818,149.05,149.02,6.71050865]
[1751637092166,6.70737797,149.09,149.01,18.05743584]
[1751637092445,11.34660818,149.05,149.01,18.05743584]
[1751637092616,11.34660818,149.05,149.01,6.71082766]
[1751637092819,11.34660818,149.05,149.01,18.05743584]
[1751637093127,6.70841909,149.07,149.01,6.71082766]
[1751637093334,2.42773252,149.06,149.02,11.34660818]
[1751637093514,6.70664096,149.11,149.05,11.34660818]
[1751637093837,2.42922349,149.1,149.08,11.34660818]
[1751637094038,0.2,149.13,149.09,11.34660818]
[1751637094212,0.2,149.13,149.11,18.05306649]
[1751637094213,2.43005515,149.12,149.11,18.05306649]
[1751637094824,2.43005515,149.12,149.11,11.34660818]
[1751637095137,2.43005515,149.12,149.1,6.70674981]
[1751637095340,11.54660818,149.13,149.08,6.70780788]
[1751637095544,2.42961093,149.12,149.08,6.70780788]
[1751637095840,2.42961093,149.11,149.08,6.70780788]
[1751637096051,0.2,149.13,149.08,6.70780788]
[1751637096238,0.2,149.13,149.11,11.34660818]
[1751637096440,0.2,149.13,149.11,18.05275433]
[1751637096949,0.2,149.13,149.09,18.05396615]
[1751637097151,2.6295805,149.13,149.11,11.34660818]
[1751637097337,2.43028684,149.12,149.11,11.34660818]
[1751637097534,0.2,149.13,149.1,11.34660818]
[1751637097730,0.2,149.13,149.11,11.34660818]
[1751637098463,0.2,149.13,149.12,18.05261676]
[1751637100738,0.2,149.13,149.1,6.70690811]
[1751637100937,0.2,149.13,149.11,11.34660818]
[1751637101139,0.2,149.13,149.12,11.34660818]
[1751637101657,0.2,149.13,149.12,32.24660818]
[1751637101969,0.2,149.13,149.12,20.9]
[1751637102277,0.2,149.13,149.12,32.24660818]
[1751637102442,0.2,149.13,149.12,38.95261676]
[1751637103552,0.2,149.13,149.12,40.58981676]
[1751637107196,0.2,149.14,149.12,40.58981676]
[1751637107355,0.2,149.14,149.13,22.69321636]
[1751637107549,0.2,149.14,149.13,32.24660818]
[1751637108471,0.2,149.14,149.13,38.95216708]
[1751637108676,0.2,149.14,149.12,11.34660818]
[1751637108976,0.2,149.14,149.13,11.34660818]
[1751637109190,0.2,149.14,149.11,18.05306649]
[1751637109354,0.2,149.14,149.11,6.70645831]
[1751637109555,0.2,149.14,149.11,18.05306649]
[1751637110059,0.2,149.14,149.12,11.34660818]
[1751637110445,0.2,149.14,149.12,18.05247985]
[1751637110641,0.2,149.14,149.12,6.70587167]
[1751637111271,0.2,149.14,149.12,18.05247985]
[1751637111570,0.2,149.14,149.11,18.05292904]
[1751637111753,0.2,149.14,149.11,6.70632086]
[1751637111980,0.2,149.14,149.11,18.05292904]
[1751637113090,0.2,149.14,149.12,6.7056483]
[1751637113289,11.34660818,149.13,149.08,22.5496]
[1751637113586,11.34660818,149.12,149.08,1.6496]
[1751637113758,6.90529233,149.14,149.07,20.9]
[1751637113962,11.34660818,149.1,149.07,20.9]
[1751637114280,11.34660818,149.09,149.05,18.05576618]
[1751637114581,11.34660818,149.1,149.06,11.34660818]
[1751637114749,11.34660818,149.1,149.05,6.709158]
[1751637114750,11.34660818,149.11,149.07,11.34660818]
[1751637114952,11.34660818,149.12,149.08,11.34660818]
[1751637115152,11.34660818,149.12,149.09,6.70735797]
[1751637115649,11.34660818,149.12,149.08,18.05421789]
[1751637116082,11.34660818,149.11,149.05,20.9]
[1751637116257,11.34660818,149.1,149.06,18.05531608]
[1751637116459,11.34660818,149.1,149.06,6.7087079]
[1751637116682,11.34660818,149.1,149.06,18.05531608]
[1751637117175,6.70600946,149.12,149.06,18.05531608]
[1751637117488,11.34660818,149.1,149.06,18.05531608]
[1751637118271,11.34660818,149.09,149.05,27.60895902]
[1751637118487,11.34660818,149.09,149.05,6.70895902]
[1751637118759,11.34660818,149.08,149.05,6.70895902]
[1751637119259,11.34660818,149.09,149.05,18.0555672]
[1751637119465,0.2,149.14,149.07,11.34660818]
[1751637119852,11.34660818,149.11,149.07,11.34660818]
[1751637120052,11.34660818,149.12,149.05,27.60895902]
[1751637120248,6.90529217,149.14,149.08,11.34660818]
[1751637120484,13.77003682,149.13,149.08,11.34660818]
[1751637120666,11.34660818,149.13,149.08,11.34660818]
[1751637120985,6.90529217,149.14,149.05,44.38185402]
[1751637120986,0.2,149.14,149.05,44.38185402]
[1751637121190,0.2,149.14,149.13,11.34660818]
[1751637121386,0.2,149.14,149.13,18.05216708]
[1751637121597,0.2,149.14,149.12,6.7058343]
[1751637121799,11.54660818,149.14,149.09,11.34660818]
[1751637122093,11.34660818,149.1,149.0,1.0]
[1751637122264,6.0573,149.12,149.0,12.34660818]
[1751637122265,11.34660818,149.04,149.0,12.34660818]
[1751637122462,6.0573,149.12,149.03,11.34660818]
[1751637122667,2.42461433,149.11,149.04,11.34660818]
[1751637122882,11.34660818,149.08,149.04,11.34660818]
[1751637123093,6.0573,149.12,149.06,11.34660818]
[1751637123266,11.34660818,149.09,149.05,11.34660818]
[1751637123578,11.34660818,149.09,149.05,18.05561342]
[1751637124293,6.7066047,149.11,149.06,11.34660818]
[1751637124587,11.34660818,149.1,149.05,18.05561342]
[1751637125603,11.34660818,149.1,149.05,11.34660818]